lending/lending_fUSD_20240926
["ID","MTS","AMOUNT","RATE_DAILY","PERIOD"]
[339223783,1727371523176,150.0,0.00011809,2]
[339223784,1727371523503,150.0,0.00011823,2]
[339223785,1727371523851,150.0,0.00011838,2]
[339223786,1727371524152,150.0,0.00011852,2]
[339223787,1727371524445,150.0,0.00011867,2]
[339223788,1727371524762,150.0,0.00011882,2]
[339223789,1727371525242,150.0,0.00011896,2]
[339223790,1727371525411,150.0,0.00011911,2]
[339223791,1727371525723,150.0,0.00011926,2]
[339223792,1727371526090,150.0,0.0001194,2]
[339223793,1727371526416,150.0,0.00011955,2]
[339223794,1727371526788,150.0,0.00011969,2]
[339223795,1727371527151,150.0,0.00011984,2]
[339223796,1727371527511,150.0,0.00011999,2]
[339223797,1727371527822,150.0,0.00012013,2]
[339223798,1727371528154,150.0,0.00012028,2]
[339223799,1727371528454,150.0,0.00012043,2]
[339223800,1727371528795,150.0,0.00012057,2]
[339223801,1727371529164,150.0,0.00012072,2]
[339223802,1727371529480,150.0,0.00012087,2]
[339223803,1727371529806,150.0,0.00012101,2]
[339223804,1727371530132,150.0,0.00012116,2]
[339223805,1727371555666,150.87,0.00011589,2]
[339223806,1727371556270,150.87,0.00011602,2]
[339223807,1727371556527,150.87,0.00011615,2]
[339223808,1727371556695,150.87,0.00011628,2]
[339223809,1727371557378,150.87,0.00011641,2]
[339223810,1727371557703,150.87,0.00011654,2]
[339223811,1727371558021,150.87,0.00011667,2]
[339223812,1727371558354,150.87,0.0001168,2]
[339223813,1727371558671,150.87,0.00011693,2]
[339223814,1727371558985,150.87,0.00011706,2]
[339223815,1727371559296,150.87,0.00011719,2]
[339223816,1727371559611,150.87,0.00011732,2]
[339223817,1727371559970,150.87,0.00011745,2]
[339223818,1727371560293,150.87,0.00011758,2]
[339223819,1727371560639,150.87,0.00011771,2]
[339223820,1727371561355,150.87,0.00011784,2]
[339223821,1727371561698,150.87,0.00011797,2]
[339223822,1727371562257,150.87,0.0001181,2]
[339223823,1727371562563,150.87,0.00011823,2]
[339223824,1727371562881,150.87,0.00011836,2]
[339223825,1727371563213,150.87,0.00011849,2]
[339223826,1727371563561,150.87,0.00011862,2]
[339223827,1727371564051,150.87,0.00011875,2]
[339223828,1727371564379,150.87,0.00011888,2]
[339223829,1727371564658,150.87,0.00011901,2]
[339223830,1727371565191,150.87,0.00011914,2]
[339223831,1727371565523,150.87,0.00011927,2]
[339223832,1727371565941,150.87,0.0001194,2]
[339223833,1727371566171,150.87,0.00011953,2]
[339223834,1727371566575,150.87,0.00011966,2]
[339223835,1727371566849,150.87,0.00011979,2]
[339223836,1727371567174,150.87,0.00011992,2]
[339223837,1727371567897,150.87,0.00012005,2]
[339223838,1727371568267,150.87,0.00012018,2]
[339223839,1727371568589,150.87,0.00012031,2]
[339223840,1727371568947,150.87,0.00012044,2]
[339223841,1727371569272,150.87,0.00012057,2]
[339223842,1727371569720,150.87,0.0001207,2]
[339223843,1727371570129,150.87,0.00012083,2]
[339223844,1727371570461,150.87,0.00012096,2]
[339223845,1727371570765,150.87,0.00012109,2]
[339223846,1727371571076,150.87,0.00012122,2]
[339223847,1727371583955,3776.62447407,0.0001203,2]
[339223848,1727371588941,3776.62447406,0.00012033,2]
[339223849,1727371593077,150.0,0.00011589,2]
[339223850,1727371593408,150.0,0.00012018,2]
[339223851,1727371593946,3776.62447406,0.00012035,2]
[339223852,1727371602237,150.0,0.00011589,2]
[339223853,1727371602587,150.0,0.00011633,2]
[339223854,1727371603285,150.0,0.00011678,2]
[339223855,1727371603617,150.0,0.00011722,2]
[339223856,1727371603923,150.0,0.00011767,2]
[339223857,1727371604638,150.0,0.00011811,2]
[339223858,1727371604939,150.0,0.00011855,2]
[339223859,1727371605339,150.0,0.000119,2]
[339223860,1727371605637,150.0,0.00011944,2]
[339223861,1727371606002,150.0,0.00011989,2]
[339223862,1727371606859,150.0,0.00012033,2]
[339223863,1727371607300,50.95462162,0.00012077,2]
[339223864,1727371722371,217.91,0.000142,31]
[339223865,1727371722460,217.91,0.000142,31]
[339223866,1727371722772,217.91,0.000142,31]
[339223867,1727371722803,217.91,0.000142,31]
[339223868,1727371722840,217.91,0.000142,31]
[339223869,1727371722877,217.91,0.000142,31]
[339223870,1727371722913,217.91,0.000142,31]
[339223871,1727371722958,217.91,0.000142,31]
[339223872,1727371722994,217.91,0.000142,31]
[339223873,1727371723041,217.91,0.000142,31]
[339223874,1727371723158,217.91,0.000142,31]
[339223875,1727371723207,217.91,0.000142,31]
[339223876,1727371723239,217.91,0.000142,31]
[339223877,1727371723276,217.91,0.000142,31]
[339223878,1727371723304,217.91,0.000142,31]
[339223879,1727371723336,217.91,0.000142,31]
[339223906,1727371831592,-150.0,0.00011589,2]
[339223908,1727371831602,-150.0,0.00011847,2]
[339223910,1727371831612,-219.86,0.00011885,2]
[339223912,1727371831621,-840.0,0.00011885,2]
[339223914,1727371831631,-99.04537838,0.00012077,2]
[339223916,1727371831640,-150.0,0.00012104,2]
[339223918,1727371831649,-150.0,0.00012122,2]
[339223920,1727371831659,-151.663265,0.00012126,2]
[339223922,1727371831668,-150.0,0.0001213,2]
[339223924,1727371831678,-150.87,0.00012135,2]
[339223926,1727371831687,-150.0,0.00012145,2]
[339223928,1727371831696,-499.99,0.00012145,2]
[339223930,1727371831705,-150.87,0.00012148,2]
[339223932,1727371831715,-150.0,0.0001216,2]
[339223934,1727371831724,-150.87,0.00012161,2]
[339223935,1727371831734,-150.0,0.00012166,2]
[339223936,1727371831743,-150.0,0.00012174,2]
[339223937,1727371831752,-150.87,0.00012174,2]
[339223938,1727371831762,-150.87,0.00012187,2]
[339223939,1727371831771,-150.0,0.00012189,2]
[339223940,1727371831780,-150.87,0.000122,2]
[339223941,1727371831789,-150.0,0.00012204,2]
[339223942,1727371831798,-150.0,0.00012211,2]
[339223943,1727371831808,-150.87,0.00012213,2]
[339223944,1727371831818,-150.0,0.00012218,2]
[339223945,1727371831827,-150.87,0.00012226,2]
[339223946,1727371831836,-327.56,0.00012231,2]
[339223947,1727371831846,-150.0,0.00012233,2]
[339223948,1727371831855,-150.0,0.00012233,2]
[339223951,1727371831864,-150.87,0.00012239,2]
[339223952,1727371832044,-150.0,0.00012248,2]
[339223953,1727371832054,-150.87,0.00012252,2]
[339223954,1727371832063,-150.0,0.00012255,2]
[339223955,1727371832073,-150.0,0.00012262,2]
[339223956,1727371832082,-150.87,0.00012265,2]
[339223957,1727371832091,-150.0,0.00012277,2]
[339223958,1727371832101,-150.87,0.00012278,2]
[339223959,1727371832110,-150.0,0.00012291,2]
[339223960,1727371832120,-150.87,0.00012291,2]
[339223961,1727371832129,-150.0,0.00012299,2]
[339223962,1727371832138,-150.87,0.00012304,2]
[339223963,1727371832148,-150.0,0.00012306,2]
[339223964,1727371832157,-150.87,0.00012317,2]
[339223965,1727371832166,-150.0,0.00012321,2]
[339223966,1727371832175,-150.87,0.0001233,2]
[339223967,1727371832184,-150.0,0.00012335,2]
[339223968,1727371832193,-50.7999693,0.00012343,2]
[339223969,1727371832268,-100.0700307,0.00012343,2]
[339223970,1727371832278,-150.0,0.00012344,2]
[339223971,1727371832287,-150.0,0.0001235,2]
[339223972,1727371832297,-150.87,0.00012356,2]
[339223973,1727371832306,-150.0,0.00012362,2]
[339223974,1727371832316,-150.0,0.00012365,2]
[339223975,1727371832325,-150.87,0.00012369,2]
[339223976,1727371832335,-150.0,0.00012379,2]
[339223977,1727371832344,-150.87,0.00012382,2]
[339223978,1727371832353,-150.0,0.00012388,2]
[339223979,1727371832363,-130.02109022,0.00012394,2]
[339223980,1727371832389,-19.97890978,0.00012394,2]
[339223981,1727371832399,-150.87,0.00012395,2]
[339223982,1727371832408,-422.91,0.000124,2]
[339223983,1727371832417,-150.0,0.00012408,2]
[339223984,1727371832426,-150.87,0.00012408,2]
[339223985,1727371832435,-150.87,0.00012421,2]
[339223986,1727371832443,-150.0,0.00012423,2]
[339223987,1727371832453,-150.0,0.00012433,2]
[339223988,1727371832462,-150.87,0.00012434,2]
[339223989,1727371832471,-150.0,0.00012438,2]
[339223990,1727371832481,-150.87,0.00012447,2]
[339223991,1727371832491,-150.0,0.00012447,2]
[339223992,1727371832502,-150.0,0.00012452,2]
[339223993,1727371832511,-150.87,0.0001246,2]
[339223994,1727371832521,-150.0,0.00012467,2]
[339223995,1727371832530,-150.87,0.00012474,2]
[339223996,1727371832540,-150.0,0.00012477,2]
[339223997,1727371832549,-150.0,0.00012482,2]
[339223998,1727371832559,-150.87,0.00012487,2]
[339223999,1727371832569,-150.0,0.00012496,2]
[339224000,1727371832579,-150.87,0.000125,2]
[339224001,1727371832588,-150.0,0.00012511,2]
[339224002,1727371832597,-150.87,0.00012513,2]
[339224003,1727371832607,-150.0,0.00012521,2]
[339224004,1727371832617,-150.0,0.00012526,2]
[339224005,1727371832626,-150.87,0.00012526,2]
[339224006,1727371832636,-150.87,0.00012539,2]
[339224007,1727371832645,-150.0,0.0001254,2]
[339224008,1727371832654,-150.87,0.00012552,2]
[339224009,1727371832664,-150.0,0.00012555,2]
[339224010,1727371832673,-150.87,0.00012565,2]
[339224011,1727371832683,-150.0,0.00012566,2]
[339224012,1727371832692,-150.0,0.00012569,2]
[339224013,1727371832702,-150.87,0.00012578,2]
[339224014,1727371832712,-150.0,0.00012584,2]
[339224015,1727371832721,-496.85304885,0.00012589,2]
[339224016,1727371832733,-1193.8058045,0.00012589,2]
[339224020,1727371837952,-1005.01552614,0.00012589,2]
[339224021,1727371837965,-2564.44491418,0.00012589,2]
[339224022,1727371838013,-2630.8,0.00012589,2]
[339224040,1727371839622,-166.8335862,0.00012589,2]
[339224041,1727371839633,-150.87,0.00012591,2]
[339224042,1727371839643,-150.0,0.00012599,2]
[339224043,1727371839653,-299.2021,0.00012599,2]
[339224044,1727371839663,-150.87,0.00012604,2]
[339224045,1727371839673,-150.0,0.0001261,2]
[339224046,1727371839683,-150.0,0.00012613,2]
[339224047,1727371839692,-150.87,0.00012617,2]
[339224048,1727371839702,-150.0,0.00012619,2]
[339224049,1727371839711,-150.0,0.00012628,2]
[339224050,1727371839720,-150.87,0.0001263,2]
[339224051,1727371839729,-150.0,0.00012643,2]
[339224052,1727371839739,-150.87,0.00012643,2]
[339224053,1727371839748,-150.0,0.00012655,2]
[339224054,1727371839759,-150.87,0.00012656,2]
[339224055,1727371839768,-150.0,0.00012657,2]
[339224056,1727371839777,-150.87,0.00012669,2]
[339224057,1727371839786,-150.0,0.00012672,2]
[339224058,1727371839796,-150.87,0.00012682,2]
[339224059,1727371839806,-150.0,0.00012686,2]
[339224060,1727371839816,-150.87,0.00012695,2]
[339224061,1727371839826,-150.0,0.00012699,2]
[339224062,1727371839836,-2111.50396557,0.000127,2]
[339224071,1727371839993,-2500.0,0.000127,2]
[339224076,1727371840015,-150.0,0.00012701,2]
[339224078,1727371840025,-150.87,0.00012708,2]
[339224080,1727371840035,-2111.50396555,0.00012711,2]
[339224082,1727371840044,-150.0,0.00012716,2]
[339224084,1727371840054,-150.87,0.00012721,2]
[339224086,1727371840063,-2111.50396555,0.00012722,2]
[339224088,1727371840073,-150.0,0.0001273,2]
[339224090,1727371840083,-2111.50396555,0.00012733,2]
[339224092,1727371840093,-150.87,0.00012734,2]
[339224094,1727371840103,-150.0,0.00012744,2]
[339224096,1727371840112,-2111.50396555,0.00012744,2]
[339224098,1727371840121,-150.0,0.00012745,2]
[339224100,1727371840131,-150.87,0.00012747,2]
[339224102,1727371840141,-2111.50396555,0.00012756,2]
[339224104,1727371840150,-150.0,0.0001276,2]
[339224106,1727371840161,-150.87,0.0001276,2]
[339224108,1727371840170,-2111.50396555,0.00012767,2]
[339224110,1727371840180,-150.87,0.00012773,2]
[339224112,1727371840190,-150.0,0.00012774,2]
[339224114,1727371840200,-2111.50396555,0.00012778,2]
[339224116,1727371840210,-150.87,0.00012786,2]
[339224118,1727371840220,-150.0,0.00012788,2]
[339224120,1727371840229,-2111.50396555,0.00012789,2]
[339224122,1727371840239,-150.0,0.00012789,2]
[339224124,1727371840248,-500.0,0.00012797,2]
[339224126,1727371840258,-150.87,0.00012799,2]
[339224128,1727371840267,-857.183,0.000128,2]
[339224130,1727371840276,-1000.0,0.000128,2]
[339224132,1727371840285,-8660.2304,0.000128,2]
[339224134,1727371840295,-100000.0,0.000128,2]
[339224136,1727371840304,-232.63426742,0.000128,5]
[339224138,1727371840313,-330999.0,0.000128,2]
[339224140,1727371840322,-2111.50396555,0.000128,2]
[339224142,1727371840331,-194.35,0.000128,2]
[339224144,1727371840340,-150.0,0.00012804,2]
[339224146,1727371840350,-150.87,0.00012812,2]
[339224148,1727371840359,-150.0,0.00012818,2]
[339224150,1727371840368,-150.87,0.00012825,2]
[339224152,1727371840379,-150.0,0.00012832,2]
[339224154,1727371840388,-150.0,0.00012833,2]
[339224156,1727371840399,-150.87,0.00012838,2]
[339224159,1727371840408,-150.0,0.00012847,2]
[339224161,1727371840420,-150.87,0.00012851,2]
[339224163,1727371840431,-150.0,0.00012862,2]
[339224165,1727371840442,-150.87,0.00012864,2]
[339224167,1727371840452,-529.924,0.00012869,2]
[339224170,1727371840464,-192.808,0.0001287,2]
[339224172,1727371840473,-407.52131968,0.00012873,2]
[339224174,1727371840483,-150.0,0.00012877,2]
[339224176,1727371840493,-150.87,0.00012877,2]
[339224177,1727371840504,-150.00000001,0.00012877,2]
[339224179,1727371840513,-150.0,0.00012877,2]
[339224181,1727371840523,-150.0,0.00012877,2]
[339224183,1727371840533,-500.0,0.00012882,2]
[339224185,1727371840543,-500.0,0.00012891,2]
[339224187,1727371840553,-51478.79553271,0.00012899,3]
[339224191,1727371840581,-627.8,0.00012899,3]
[339224194,1727371840592,-266.27,0.00012899,3]
[339224196,1727371840603,-1662.196,0.00012899,3]
[339224198,1727371840620,-1288.86214121,0.00012899,3]
[339224273,1727371842630,-3153.63692646,0.00012899,3]
[339224276,1727371842642,-42684.13102919,0.00012899,3]
[339224280,1727371842800,-712.48905944,0.00012899,3]
[339224281,1727371842812,-1477.73136466,0.00012899,3]
[339224297,1727371845609,-70864.27890022,0.00012899,3]
[339224298,1727371845624,-677.99999947,0.00012899,3]
[339224299,1727371845639,-451.34,0.00012899,3]
[339224300,1727371845653,-2091.0265999,0.00012899,3]
[339224302,1727371845667,-32887.25683206,0.00012899,3]
[339224303,1727371845682,-369.15130269,0.00012899,3]
[339224304,1727371845732,-379.71008372,0.00012899,3]
[339224305,1727371845747,-1104.89183922,0.00012899,3]
[339224306,1727371845762,-384.50318454,0.00012899,3]
[339224307,1727371845793,-974.56815597,0.00012899,3]
[339224308,1727371845808,-27860.84074081,0.00012899,3]
[339224309,1727371845824,-2247.9574,0.00012899,3]
[339224310,1727371845838,-1033.05017563,0.00012899,3]
[339224311,1727371845853,-327.39,0.00012899,3]
[339224312,1727371845873,-57891.49658659,0.00012899,3]
[339224313,1727371845915,-23118.69514802,0.00012899,3]
[339224318,1727372051834,308.91,9.967e-05,2]
[339224319,1727372108987,150.0,0.0001389,30]
[339224320,1727372235635,157.43,0.00010959,2]
[339224321,1727372335036,183.06,0.000142,31]
[339224322,1727372335281,183.06,0.000142,31]
[339224323,1727372335312,183.06,0.000142,31]
[339224324,1727372335350,183.06,0.000142,31]
[339224325,1727372335383,183.06,0.000142,31]
[339224326,1727372335413,183.06,0.000142,31]
[339224327,1727372335452,183.06,0.000142,31]
[339224328,1727372335483,183.06,0.000142,31]
[339224329,1727372335512,183.06,0.000142,31]
[339224330,1727372335556,183.06,0.000142,31]
[339224331,1727372335584,183.06,0.000142,31]
[339224332,1727372335655,183.06,0.000142,31]
[339224333,1727372335729,183.06,0.000142,31]
[339224334,1727372335756,183.06,0.000142,31]
[339224335,1727372335821,183.06,0.000142,31]
[339224336,1727372335892,183.06,0.000142,31]
[339224339,1727372697146,293.46,9.869e-05,2]
[339224341,1727372804583,150.0,0.0001389,30]
[339224343,1727372947040,153.78,0.000142,31]
[339224344,1727372947094,153.78,0.000142,31]
[339224345,1727372947127,153.78,0.000142,31]
[339224346,1727372947200,153.78,0.000142,31]
[339224347,1727372947259,153.78,0.000142,31]
[339224348,1727372947316,153.78,0.000142,31]
[339224349,1727372947373,153.78,0.000142,31]
[339224350,1727372947429,153.78,0.000142,31]
[339224351,1727372947508,153.78,0.000142,31]
[339224352,1727372947549,153.78,0.000142,31]
[339224353,1727372947622,153.78,0.000142,31]
[339224354,1727372947674,153.78,0.000142,31]
[339224355,1727372947752,153.78,0.000142,31]
[339224356,1727372947804,153.78,0.000142,31]
[339224357,1727372947864,153.78,0.000142,31]
[339224358,1727372947917,153.78,0.000142,31]
[339224376,1727373031845,-179.58,0.00011187,2]
[339224377,1727373031856,-249.81651491,0.00011589,2]
[339224378,1727373031865,-249.81651491,0.00011602,2]
[339224379,1727373031875,-249.81651491,0.00011615,2]
[339224380,1727373031884,-300.0,0.00011627,2]
[339224381,1727373031895,-249.81651491,0.00011628,2]
[339224382,1727373031904,-249.81651491,0.00011641,2]
[339224383,1727373031915,-249.81651491,0.00011654,2]
[339224384,1727373031925,-249.81651491,0.00011667,2]
[339224385,1727373031937,-249.81651491,0.0001168,2]
[339224386,1727373031947,-249.81651491,0.00011693,2]
[339224387,1727373031957,-249.81651491,0.00011706,2]
[339224388,1727373031967,-249.81651491,0.00011719,2]
[339224389,1727373031976,-249.81651491,0.00011732,2]
[339224390,1727373031986,-249.81651491,0.00011745,2]
[339224391,1727373031995,-249.81651491,0.00011758,2]
[339224392,1727373032005,-249.81651491,0.00011771,2]
[339224393,1727373032014,-249.81651491,0.00011784,2]
[339224394,1727373032024,-249.81651491,0.00011797,2]
[339224395,1727373032034,-250.0,0.000118,2]
[339224396,1727373032044,-249.81651491,0.0001181,2]
[339224397,1727373032053,-249.81651491,0.00011823,2]
[339224398,1727373032063,-819.79581671,0.00011829,2]
[339224399,1727373032365,-180.20418329,0.00011829,2]
[339224400,1727373032375,-249.81651491,0.00011836,2]
[339224401,1727373032385,-249.81651491,0.00011849,2]
[339224402,1727373032395,-150.0,0.00011862,2]
[339224403,1727373032405,-249.81651491,0.00011862,2]
[339224404,1727373032415,-249.81651491,0.00011875,2]
[339224405,1727373032424,-192.39,0.00011885,2]
[339224406,1727373032434,-173.42155707,0.00011888,2]
[339224407,1727373032452,-76.39495784,0.00011888,2]
[339224408,1727373032462,-249.81651491,0.00011901,2]
[339224409,1727373032471,-249.81651491,0.00011914,2]
[339224410,1727373032481,-249.81651491,0.00011927,2]
[339224411,1727373032490,-249.81651491,0.0001194,2]
[339224412,1727373032500,-249.81651491,0.00011953,2]
[339224413,1727373032510,-249.81651491,0.00011966,2]
[339224414,1727373032519,-249.81651491,0.00011979,2]
[339224415,1727373032529,-249.81651491,0.00011992,2]
[339224416,1727373032539,-89.07292288,0.00012005,2]
[339224417,1727373034808,-160.74359203,0.00012005,2]
[339224418,1727373034818,-176.27554453,0.00012018,2]
[339224498,1727373038055,-73.54097038,0.00012018,2]
[339224499,1727373038066,-222.65891962,0.00012031,2]
[339224500,1727373038078,-27.15759529,0.00012031,2]
[339224501,1727373038089,-249.81651491,0.00012044,2]
[339224502,1727373038098,-8512.04962907,0.00012046,2]
[339224508,1727373039971,-326.335,0.00012046,2]
[339224509,1727373039982,-1645.92158839,0.00012046,2]
[339224510,1727373039993,-12136.43239176,0.00012046,2]
[339224625,1727373042902,-10569.36041852,0.00012046,2]
[339224626,1727373043062,-23573.58376527,0.00012046,2]
[339224627,1727373043074,-4997.10810611,0.00012046,2]
[339224628,1727373043086,-6078.70193933,0.00012046,2]
[339224629,1727373043098,-639.68955097,0.00012046,2]
[339224630,1727373043109,-5163.24409352,0.00012046,2]
[339224631,1727373043119,-8388.43280596,0.00012057,2]
[339224632,1727373043130,-2382.82278091,0.00012057,2]
[339224633,1727373043141,-7429.23816933,0.00012057,2]
[339224642,1727373045827,-296.42599999,0.00011528,2]
[339224643,1727373046076,-597.61986677,0.00011528,2]
[339224644,1727373166197,14765.4297,0.00011087,2]
[339224646,1727373237954,293.12,9.519e-05,2]
[339224648,1727373372155,150.0,0.0001389,30]
[339224649,1727373558248,153.8,0.000142,31]
[339224650,1727373558352,153.8,0.000142,31]
[339224651,1727373558415,153.8,0.000142,31]
[339224652,1727373558551,153.8,0.000142,31]
[339224653,1727373558579,153.8,0.000142,31]
[339224654,1727373558613,153.8,0.000142,31]
[339224655,1727373558649,153.8,0.000142,31]
[339224656,1727373558714,153.8,0.000142,31]
[339224657,1727373558773,153.8,0.000142,31]
[339224658,1727373558837,153.8,0.000142,31]
[339224659,1727373558896,153.8,0.000142,31]
[339224660,1727373558958,153.8,0.000142,31]
[339224661,1727373559018,153.8,0.000142,31]
[339224662,1727373559078,153.8,0.000142,31]
[339224663,1727373870451,278.46,9.592e-05,2]
[339224665,1727373939171,150.0,0.0001389,30]
[339224666,1727373992323,319.46,0.00010959,2]
[339224667,1727374167553,153.81,0.000142,31]
[339224668,1727374167614,153.81,0.000142,31]
[339224669,1727374167674,153.81,0.000142,31]
[339224670,1727374167735,153.81,0.000142,31]
[339224671,1727374167806,153.81,0.000142,31]
[339224672,1727374167860,153.81,0.000142,31]
[339224673,1727374167914,153.81,0.000142,31]
[339224674,1727374167981,153.81,0.000142,31]
[339224675,1727374168056,153.81,0.000142,31]
[339224676,1727374168127,153.81,0.000142,31]
[339224677,1727374168235,153.81,0.000142,31]
[339224678,1727374168271,153.81,0.000142,31]
[339224679,1727374168301,153.81,0.000142,31]
[339224680,1727374168342,153.81,0.000142,31]
[339224687,1727374232070,-300.0,0.00011281,2]
[339224688,1727374232080,-153.91,0.00011338,2]
[339224689,1727374232090,-1000.0,0.00011405,2]
[339224690,1727374232100,-250.0,0.00011472,2]
[339224691,1727374232110,-300.0,0.00011524,2]
[339224692,1727374232119,-4523.49,0.00011525,2]
[339224693,1727374232131,-43744.23637319,0.00011525,2]
[339224694,1727374232141,-150.0,0.00011527,2]
[339224695,1727374232150,-7159.6803071,0.00011528,2]
[339224696,1727374232159,-175.88,0.00011538,2]
[339224697,1727374232168,-161.38256954,0.00011589,2]
[339224698,1727374232177,-150.00000001,0.00011589,2]
[339224699,1727374232186,-150.0,0.00011589,2]
[339224700,1727374232195,-150.0,0.00011589,2]
[339224701,1727374232204,-161.38256954,0.00011602,2]
[339224702,1727374232214,-161.38256954,0.00011615,2]
[339224703,1727374232223,-150.0,0.00011619,2]
[339224704,1727374232233,-161.38256954,0.00011628,2]
[339224705,1727374232243,-161.38256954,0.00011641,2]
[339224706,1727374232253,-150.0,0.00011649,2]
[339224707,1727374232262,-161.38256954,0.00011654,2]
[339224708,1727374232271,-161.38256954,0.00011667,2]
[339224709,1727374232281,-150.0,0.00011679,2]
[339224710,1727374232290,-161.38256954,0.0001168,2]
[339224711,1727374232299,-161.38256954,0.00011693,2]
[339224712,1727374232309,-161.38256954,0.00011706,2]
[339224713,1727374232318,-150.0,0.00011709,2]
[339224714,1727374232327,-161.38256954,0.00011719,2]
[339224715,1727374232336,-161.38256954,0.00011732,2]
[339224716,1727374232345,-150.0,0.00011739,2]
[339224717,1727374232355,-161.38256954,0.00011745,2]
[339224718,1727374232364,-161.38256954,0.00011758,2]
[339224719,1727374232373,-150.0,0.00011769,2]
[339224720,1727374232382,-161.38256954,0.00011771,2]
[339224721,1727374232392,-161.38256954,0.00011784,2]
[339224722,1727374232401,-161.38256954,0.00011797,2]
[339224723,1727374232411,-150.0,0.00011799,2]
[339224724,1727374232420,-161.38256954,0.0001181,2]
[339224725,1727374232429,-161.38256954,0.00011823,2]
[339224726,1727374232438,-150.0,0.00011829,2]
[339224727,1727374232448,-161.38256954,0.00011836,2]
[339224728,1727374232457,-161.38256954,0.00011849,2]
[339224729,1727374232466,-278.46,0.00011856,2]
[339224730,1727374232475,-150.0,0.00011859,2]
[339224731,1727374232486,-161.38256954,0.00011862,2]
[339224732,1727374232497,-161.38256954,0.00011875,2]
[339224733,1727374232509,-161.38256954,0.00011888,2]
[339224734,1727374232521,-150.0,0.00011888,2]
[339224735,1727374232531,-161.38256954,0.00011901,2]
[339224736,1727374232540,-161.38256954,0.00011914,2]
[339224737,1727374232550,-150.0,0.00011918,2]
[339224738,1727374232561,-161.38256954,0.00011927,2]
[339224739,1727374232571,-161.38256954,0.0001194,2]
[339224740,1727374232584,-150.0,0.00011948,2]
[339224741,1727374232594,-161.38256954,0.00011953,2]
[339224742,1727374232604,-161.38256954,0.00011966,2]
[339224743,1727374232615,-150.0,0.00011978,2]
[339224744,1727374232627,-161.38256954,0.00011979,2]
[339224745,1727374232636,-161.38256954,0.00011992,2]
[339224746,1727374232646,-161.38256954,0.00012005,2]
[339224747,1727374232655,-150.0,0.00012008,2]
[339224749,1727374232666,-161.38256954,0.00012018,2]
[339224751,1727374232677,-161.38256954,0.00012031,2]
[339224752,1727374232687,-150.0,0.00012038,2]
[339224753,1727374232697,-161.38256954,0.00012044,2]
[339224754,1727374232711,-404.21940854,0.00012052,2]
[339224755,1727374232721,-161.38256954,0.00012057,2]
[339224756,1727374232731,-150.0,0.00012068,2]